[Event "*** Titled Tuesday Blitz"]
[Site "Chess.com"]
[Date "2020.05.12"]
[Round "6"]
[White "CMS13"]
[Black "Witaliss"]
[Result "0-1"]
[WhiteElo "2172"]
[BlackElo "2416"]
[TimeControl "180+1"]
[EndTime "11:05:37 PDT"]
[Termination "Witaliss won by resignation"]

1. e4 {[%clk 0:03:00.9]} 1... c6 {[%clk 0:03:00.9]} 2. Nc3 {[%clk 0:03:00.4]}
2... d5 {[%clk 0:03:01.7]} 3. Nf3 {[%clk 0:02:59.4]} 3... Bg4 {[%clk 0:03:00.9]}
4. h3 {[%clk 0:02:59.4]} 4... Bxf3 {[%clk 0:03:01.2]} 5. Qxf3 {[%clk 0:03:00.3]}
5... Nf6 {[%clk 0:03:01.3]} 6. Be2 {[%clk 0:03:00.3]} 6... e6 {[%clk 0:02:58.9]}
7. O-O {[%clk 0:02:59.8]} 7... Bb4 {[%clk 0:02:58]} 8. e5 {[%clk 0:02:46]} 8...
Nfd7 {[%clk 0:02:57.3]} 9. d4 {[%clk 0:02:45.4]} 9... c5 {[%clk 0:02:45]} 10. a3
{[%clk 0:02:44.3]} 10... Bxc3 {[%clk 0:02:41.4]} 11. bxc3 {[%clk 0:02:44.3]}
11... Nc6 {[%clk 0:02:40.8]} 12. Qg4 {[%clk 0:02:43]} 12... g6 {[%clk
0:02:36.7]} 13. Bg5 {[%clk 0:02:28.9]} 13... Qa5 {[%clk 0:02:35.2]} 14. Rab1
{[%clk 0:02:14.2]} 14... Qxc3 {[%clk 0:02:30.5]} 15. Rxb7 {[%clk 0:02:12.9]}
15... Qxd4 {[%clk 0:02:26.1]} 16. Qf3 {[%clk 0:01:43.8]} 16... Ncxe5 {[%clk
0:02:21.1]} 17. Qb3 {[%clk 0:01:38.8]} 17... O-O {[%clk 0:01:53.8]} 18. Kh1
{[%clk 0:01:28.5]} 18... c4 {[%clk 0:01:50.3]} 19. Qg3 {[%clk 0:01:24.8]} 19...
Qe4 {[%clk 0:01:31.2]} 20. f4 {[%clk 0:01:20.2]} 20... Qxe2 {[%clk 0:01:28]} 21.
Re1 {[%clk 0:01:19.5]} 21... Qxc2 {[%clk 0:01:25.9]} 22. fxe5 {[%clk 0:01:19.2]}
22... Nc5 {[%clk 0:01:25.2]} 23. Bf6 {[%clk 0:01:01.8]} 23... h5 {[%clk
0:00:59.3]} 24. Qg5 {[%clk 0:00:46.1]} 24... Kh7 {[%clk 0:00:58.1]} 25. g4
{[%clk 0:00:27.3]} 25... Nxb7 {[%clk 0:00:48]} 26. gxh5 {[%clk 0:00:27]} 26...
Qf5 {[%clk 0:00:47.8]} 27. hxg6+ {[%clk 0:00:25.7]} 27... fxg6 {[%clk
0:00:47.4]} 28. Qh4+ {[%clk 0:00:21.9]} 28... Qh5 {[%clk 0:00:47.2]} 29. Qg3
{[%clk 0:00:19]} 29... Nc5 {[%clk 0:00:46.5]} 30. Rb1 {[%clk 0:00:17.2]} 30...
Rf7 {[%clk 0:00:44.3]} 31. Rg1 {[%clk 0:00:15.5]} 31... Ne4 {[%clk 0:00:43.5]}
32. Qe3 {[%clk 0:00:14.6]} 32... Nxf6 {[%clk 0:00:42.7]} 33. exf6 {[%clk
0:00:14.1]} 33... Raf8 {[%clk 0:00:41.8]} 34. Rg5 {[%clk 0:00:12.2]} 34... Qh6
{[%clk 0:00:41.1]} 0-1

[Event "*** Titled Tuesday Blitz"]
[Site "Chess.com"]
[Date "2020.05.12"]
[Round "6"]
[White "mariangie523"]
[Black "2165149677570"]
[Result "1-0"]
[WhiteElo "2051"]
[BlackElo "2226"]
[TimeControl "180+1"]
[EndTime "11:05:38 PDT"]
[Termination "mariangie523 won by resignation"]

1. e4 {[%clk 0:02:41.9]} 1... f5 {[%clk 0:02:55.8]} 2. exf5 {[%clk 0:02:39]}
2... Kf7 {[%clk 0:02:54.8]} 3. Nf3 {[%clk 0:02:36.3]} 3... Nc6 {[%clk
0:02:46.6]} 4. d4 {[%clk 0:02:36.1]} 4... g6 {[%clk 0:02:40.8]} 5. fxg6+ {[%clk
0:02:35.3]} 5... hxg6 {[%clk 0:02:40.9]} 6. Nc3 {[%clk 0:02:31.4]} 6... e6
{[%clk 0:02:40.7]} 7. Bg5 {[%clk 0:02:27.2]} 7... Be7 {[%clk 0:02:36.3]} 8. h4
{[%clk 0:02:05.8]} 8... Nf6 {[%clk 0:02:23.5]} 9. Qd2 {[%clk 0:01:47.7]} 9... d6
{[%clk 0:02:01.1]} 10. O-O-O {[%clk 0:01:47.1]} 10... Bd7 {[%clk 0:01:39.9]} 11.
Bc4 {[%clk 0:01:37.3]} 11... Kg7 {[%clk 0:01:32.7]} 12. Kb1 {[%clk 0:01:28.4]}
12... a6 {[%clk 0:01:28.8]} 13. d5 {[%clk 0:01:24.3]} 13... Na5 {[%clk
0:01:05.6]} 14. Be2 {[%clk 0:01:15.9]} 14... exd5 {[%clk 0:00:58.6]} 15. Bxf6+
{[%clk 0:01:11.8]} 15... Bxf6 {[%clk 0:00:58.6]} 16. Nxd5 {[%clk 0:01:08.8]}
16... b6 {[%clk 0:00:46]} 17. g4 {[%clk 0:01:01.7]} 17... Bxg4 {[%clk
0:00:41.7]} 18. Ng5 {[%clk 0:00:57.3]} 18... Bxg5 {[%clk 0:00:31.4]} 19. hxg5
{[%clk 0:00:48.9]} 19... Bxe2 {[%clk 0:00:27]} 20. Qxe2 {[%clk 0:00:39]} 20...
Qxg5 {[%clk 0:00:24.5]} 21. Rhg1 {[%clk 0:00:34.5]} 21... Qe5 {[%clk 0:00:21.3]}
22. Qd3 {[%clk 0:00:29.8]} 22... Rh6 {[%clk 0:00:18.6]} 23. f4 {[%clk 0:00:24]}
23... Qh5 {[%clk 0:00:09.9]} 24. Qc3+ {[%clk 0:00:20.7]} 24... Kf7 {[%clk
0:00:03.6]} 25. Qf6+ {[%clk 0:00:19.3]} 1-0

[Event "*** Titled Tuesday Blitz"]
[Site "Chess.com"]
[Date "2020.05.12"]
[Round "6"]
[White "bazar-wokzal"]
[Black "Hippotaner"]
[Result "1-0"]
[WhiteElo "2556"]
[BlackElo "2354"]
[TimeControl "180+1"]
[EndTime "11:05:42 PDT"]
[Termination "bazar-wokzal won by resignation"]

1. e4 {[%clk 0:03:00.9]} 1... e5 {[%clk 0:02:58.9]} 2. Bc4 {[%clk 0:02:59.4]}
2... Nc6 {[%clk 0:02:58.3]} 3. f4 {[%clk 0:02:59]} 3... d6 {[%clk 0:02:54]} 4.
Nf3 {[%clk 0:02:58.5]} 4... Nf6 {[%clk 0:02:53.3]} 5. Nc3 {[%clk 0:02:57.8]}
5... Be7 {[%clk 0:02:53]} 6. O-O {[%clk 0:02:56.6]} 6... O-O {[%clk 0:02:53.1]}
7. d3 {[%clk 0:02:56.4]} 7... Na5 {[%clk 0:02:52.5]} 8. f5 {[%clk 0:02:48.2]}
8... Nxc4 {[%clk 0:02:51.9]} 9. dxc4 {[%clk 0:02:47.6]} 9... Bd7 {[%clk
0:02:49]} 10. Bg5 {[%clk 0:02:45.3]} 10... Bc6 {[%clk 0:02:47.4]} 11. Bxf6
{[%clk 0:02:42.2]} 11... Bxf6 {[%clk 0:02:47.4]} 12. Nd5 {[%clk 0:02:42.3]}
12... Bxd5 {[%clk 0:02:47]} 13. cxd5 {[%clk 0:02:41.4]} 13... a5 {[%clk
0:02:45.7]} 14. Qd2 {[%clk 0:02:38.7]} 14... Qb8 {[%clk 0:02:45.5]} 15. g4
{[%clk 0:02:35.6]} 15... Qa7+ {[%clk 0:02:45.5]} 16. Kh1 {[%clk 0:02:34.1]}
16... h6 {[%clk 0:02:32.9]} 17. h4 {[%clk 0:02:32.4]} 17... g6 {[%clk 0:01:33]}
18. Qxh6 {[%clk 0:02:23.7]} 18... Bg7 {[%clk 0:01:33]} 19. Qg5 {[%clk
0:02:16.6]} 19... gxf5 {[%clk 0:01:31.8]} 20. gxf5 {[%clk 0:02:12.3]} 20... f6
{[%clk 0:01:32]} 21. Qg3 {[%clk 0:02:04.2]} 21... Qe3 {[%clk 0:01:31.3]} 22. Rg1
{[%clk 0:02:02.4]} 22... Qh6 {[%clk 0:01:31.1]} 23. Qh3 {[%clk 0:01:58.2]} 23...
Rf7 {[%clk 0:01:28.1]} 24. Rg6 {[%clk 0:01:57.9]} 24... Qf4 {[%clk 0:01:26.8]}
25. Rag1 {[%clk 0:01:57.5]} 25... Qxe4 {[%clk 0:01:26.7]} 26. h5 {[%clk
0:01:54.3]} 26... Kh7 {[%clk 0:01:19.3]} 27. Qg2 {[%clk 0:01:49.1]} 27... Rg8
{[%clk 0:01:02.1]} 28. Ng5+ {[%clk 0:01:47]} 28... fxg5 {[%clk 0:00:57.8]} 29.
Qxe4 {[%clk 0:01:46.8]} 29... Bf6 {[%clk 0:00:57.5]} 30. c4 {[%clk 0:01:31.4]}
30... b6 {[%clk 0:00:54.8]} 31. Kg2 {[%clk 0:01:29.9]} 31... Ra8 {[%clk
0:00:51.7]} 32. Kf3 {[%clk 0:01:27.7]} 32... a4 {[%clk 0:00:52]} 33. Ke3 {[%clk
0:01:22.2]} 33... a3 {[%clk 0:00:51]} 34. b4 {[%clk 0:01:19.5]} 34... Ra4 {[%clk
0:00:50.6]} 35. Rb1 {[%clk 0:01:18.9]} 35... Ra8 {[%clk 0:00:50.4]} 36. Kd3
{[%clk 0:01:17.7]} 36... Ra7 {[%clk 0:00:49.1]} 37. c5 {[%clk 0:01:17.1]} 37...
dxc5 {[%clk 0:00:48.5]} 38. bxc5 {[%clk 0:01:17]} 38... bxc5 {[%clk 0:00:49]}
39. Rb8 {[%clk 0:01:16.1]} 39... Ra6 {[%clk 0:00:43.7]} 40. Qc4 {[%clk
0:01:13.9]} 40... Rd6 {[%clk 0:00:43.4]} 41. Ke4 {[%clk 0:01:13.6]} 41... Rfd7
{[%clk 0:00:39.5]} 42. Qxc5 {[%clk 0:01:11.6]} 42... c6 {[%clk 0:00:31.8]} 43.
Qxc6 {[%clk 0:01:07.2]} 43... Rxc6 {[%clk 0:00:31.3]} 44. dxc6 {[%clk
0:01:07.1]} 44... Rd4+ {[%clk 0:00:32.2]} 45. Ke3 {[%clk 0:01:07.2]} 45... Bd8
{[%clk 0:00:31.9]} 46. Rb7+ {[%clk 0:01:03.8]} 46... Kh8 {[%clk 0:00:31]} 47. c7
{[%clk 0:01:03.9]} 47... Bxc7 {[%clk 0:00:31.2]} 48. Rxc7 {[%clk 0:01:03.7]}
48... Rh4 {[%clk 0:00:29.6]} 49. Re6 {[%clk 0:01:01.5]} 1-0

[Event "*** Titled Tuesday Blitz"]
[Site "Chess.com"]
[Date "2020.05.12"]
[Round "6"]
[White "ASVZ"]
[Black "harkerchess"]
[Result "1-0"]
[WhiteElo "2354"]
[BlackElo "1995"]
[TimeControl "180+1"]
[EndTime "11:05:44 PDT"]
[Termination "ASVZ won by checkmate"]

1. e4 {[%clk 0:03:00.9]} 1... e5 {[%clk 0:02:59.3]} 2. Nf3 {[%clk 0:02:57.2]}
2... Nc6 {[%clk 0:02:59.2]} 3. Nc3 {[%clk 0:02:57.3]} 3... Nf6 {[%clk
0:02:57.7]} 4. Bb5 {[%clk 0:02:57.4]} 4... Bb4 {[%clk 0:02:57.4]} 5. O-O {[%clk
0:02:57.7]} 5... O-O {[%clk 0:02:56.9]} 6. d3 {[%clk 0:02:58.2]} 6... d6 {[%clk
0:02:56.9]} 7. Bg5 {[%clk 0:02:58.3]} 7... Be6 {[%clk 0:02:53.6]} 8. d4 {[%clk
0:02:48.4]} 8... exd4 {[%clk 0:02:47.3]} 9. Nxd4 {[%clk 0:02:43.5]} 9... Nxd4
{[%clk 0:02:48.2]} 10. Qxd4 {[%clk 0:02:42.2]} 10... Bc5 {[%clk 0:02:46.9]} 11.
Qd3 {[%clk 0:02:29.2]} 11... h6 {[%clk 0:02:45.5]} 12. Bh4 {[%clk 0:02:29.1]}
12... g5 {[%clk 0:02:43.4]} 13. Bg3 {[%clk 0:02:29.3]} 13... c6 {[%clk
0:02:40.5]} 14. Bc4 {[%clk 0:02:28.7]} 14... d5 {[%clk 0:02:34.6]} 15. exd5
{[%clk 0:02:25.8]} 15... Nxd5 {[%clk 0:02:35.5]} 16. Nxd5 {[%clk 0:02:23.4]}
16... Bxd5 {[%clk 0:02:36.4]} 17. Bxd5 {[%clk 0:02:12]} 17... Qxd5 {[%clk
0:02:37.3]} 18. Qxd5 {[%clk 0:02:12.1]} 18... cxd5 {[%clk 0:02:38.2]} 19. Rad1
{[%clk 0:02:12.5]} 19... Rfd8 {[%clk 0:02:36.7]} 20. Rd3 {[%clk 0:02:12.5]}
20... Rac8 {[%clk 0:02:35.8]} 21. Rfd1 {[%clk 0:02:11.8]} 21... d4 {[%clk
0:02:31.5]} 22. c3 {[%clk 0:02:05.4]} 22... Bb6 {[%clk 0:02:31.6]} 23. cxd4
{[%clk 0:01:35.1]} 23... Rc2 {[%clk 0:02:31.7]} 24. d5 {[%clk 0:01:29.3]} 24...
Rxb2 {[%clk 0:02:28.7]} 25. R3d2 {[%clk 0:01:22.4]} 25... Rxd2 {[%clk
0:02:25.5]} 26. Rxd2 {[%clk 0:01:22.7]} 26... f5 {[%clk 0:02:22.7]} 27. h4
{[%clk 0:00:54.4]} 27... f4 {[%clk 0:02:21.4]} 28. Bh2 {[%clk 0:00:54.6]} 28...
Kf7 {[%clk 0:02:20.5]} 29. Kf1 {[%clk 0:00:53.8]} 29... Kf6 {[%clk 0:02:18.5]}
30. hxg5+ {[%clk 0:00:53.9]} 30... hxg5 {[%clk 0:02:19.4]} 31. g3 {[%clk
0:00:54.5]} 31... Rh8 {[%clk 0:02:07.5]} 32. f3 {[%clk 0:00:53]} 32... Ke5
{[%clk 0:01:48.2]} 33. gxf4+ {[%clk 0:00:51.9]} 33... gxf4 {[%clk 0:01:49.1]}
34. d6 {[%clk 0:00:52]} 34... Rxh2 {[%clk 0:01:40.6]} 35. Rxh2 {[%clk
0:00:49.3]} 35... Kxd6 {[%clk 0:01:41.5]} 36. Ke2 {[%clk 0:00:48.9]} 36... Be3
{[%clk 0:01:36.8]} 37. Rh7 {[%clk 0:00:46.4]} 37... b5 {[%clk 0:01:36.3]} 38.
Kd3 {[%clk 0:00:45.7]} 38... a5 {[%clk 0:01:35]} 39. Rh5 {[%clk 0:00:42.4]}
39... Kc6 {[%clk 0:01:32.7]} 40. a4 {[%clk 0:00:40.7]} 40... bxa4 {[%clk
0:01:26.6]} 41. Rxa5 {[%clk 0:00:40.4]} 41... Kd6 {[%clk 0:01:24.8]} 42. Rxa4
{[%clk 0:00:40.4]} 42... Ke5 {[%clk 0:01:24.7]} 43. Ra5+ {[%clk 0:00:40.3]}
43... Kf6 {[%clk 0:01:24.2]} 44. Ke4 {[%clk 0:00:41.2]} 44... Kg6 {[%clk
0:01:22.3]} 45. Ra6+ {[%clk 0:00:40.5]} 45... Kh5 {[%clk 0:01:19.1]} 46. Kf5
{[%clk 0:00:38.6]} 46... Kh4 {[%clk 0:01:18.8]} 47. Rg6 {[%clk 0:00:38.3]} 47...
Kh5 {[%clk 0:01:10.5]} 48. Rg2 {[%clk 0:00:36.4]} 48... Kh6 {[%clk 0:01:07.7]}
49. Kf6 {[%clk 0:00:36.3]} 49... Kh5 {[%clk 0:01:07]} 50. Rg4 {[%clk 0:00:34.8]}
50... Bd2 {[%clk 0:01:02.4]} 51. Rg2 {[%clk 0:00:34.5]} 51... Be3 {[%clk
0:00:50.1]} 52. Rh2# {[%clk 0:00:33.5]} 1-0

[Event "*** Titled Tuesday Blitz"]
[Site "Chess.com"]
[Date "2020.05.12"]
[Round "6"]
[White "AnishGiri"]
[Black "LazovT"]
[Result "1-0"]
[WhiteElo "3026"]
[BlackElo "2685"]
[TimeControl "180+1"]
[EndTime "11:05:45 PDT"]
[Termination "AnishGiri won by resignation"]

1. e4 {[%clk 0:03:00.9]} 1... c5 {[%clk 0:02:33.7]} 2. Nf3 {[%clk 0:03:00.2]}
2... d6 {[%clk 0:02:33.9]} 3. d4 {[%clk 0:03:00.1]} 3... cxd4 {[%clk 0:02:34.8]}
4. Nxd4 {[%clk 0:03:00.4]} 4... Nf6 {[%clk 0:02:35.5]} 5. Nc3 {[%clk 0:03:01]}
5... a6 {[%clk 0:02:36.2]} 6. Bg5 {[%clk 0:03:01.2]} 6... Nbd7 {[%clk
0:02:36.6]} 7. Qe2 {[%clk 0:03:01]} 7... Qc7 {[%clk 0:02:35.9]} 8. g4 {[%clk
0:02:59]} 8... b5 {[%clk 0:02:34.1]} 9. a3 {[%clk 0:02:59.4]} 9... Bb7 {[%clk
0:02:33.9]} 10. h4 {[%clk 0:02:56.5]} 10... h6 {[%clk 0:02:30.3]} 11. Bd2 {[%clk
0:02:54]} 11... Ne5 {[%clk 0:02:29.7]} 12. Rg1 {[%clk 0:02:51.1]} 12... g6
{[%clk 0:02:10]} 13. g5 {[%clk 0:02:51]} 13... hxg5 {[%clk 0:02:10.9]} 14. hxg5
{[%clk 0:02:51.6]} 14... Nh5 {[%clk 0:01:50.5]} 15. O-O-O {[%clk 0:02:44.7]}
15... Nc4 {[%clk 0:01:50.1]} 16. Ndxb5 {[%clk 0:02:40.4]} 16... axb5 {[%clk
0:01:46.5]} 17. Nxb5 {[%clk 0:02:41.3]} 17... Qb6 {[%clk 0:01:32]} 18. Qxc4
{[%clk 0:02:41.2]} 18... Rc8 {[%clk 0:01:32.6]} 19. Qd4 {[%clk 0:02:36.6]} 19...
Qxd4 {[%clk 0:01:30.3]} 20. Nxd4 {[%clk 0:02:37.5]} 20... Bxe4 {[%clk
0:01:30.6]} 21. Bb5+ {[%clk 0:02:37.4]} 21... Kd8 {[%clk 0:01:22.4]} 22. Ba5+
{[%clk 0:02:37.8]} 22... Rc7 {[%clk 0:01:23]} 23. Rge1 {[%clk 0:02:38]} 23...
Bb7 {[%clk 0:01:19.6]} 24. Re3 {[%clk 0:02:03.4]} 24... Kc8 {[%clk 0:01:14.7]}
25. Bxc7 {[%clk 0:02:02.8]} 25... Kxc7 {[%clk 0:01:15.6]} 26. Rc3+ {[%clk
0:02:02.1]} 26... Kb6 {[%clk 0:01:16.2]} 27. Rb3 {[%clk 0:02:00.9]} 27... Ka7
{[%clk 0:01:08]} 28. Nc6+ {[%clk 0:01:57.7]} 28... Bxc6 {[%clk 0:01:08.1]} 29.
Bxc6 {[%clk 0:01:57.9]} 29... Nf4 {[%clk 0:01:09]} 30. Rb7+ {[%clk 0:01:47.9]}
30... Ka6 {[%clk 0:01:08.2]} 31. Kb1 {[%clk 0:01:34.8]} 31... Bg7 {[%clk
0:00:53.5]} 32. Rxe7 {[%clk 0:01:32.1]} 32... Kb6 {[%clk 0:00:54.4]} 33. Rxf7
{[%clk 0:01:27.7]} 33... Be5 {[%clk 0:00:53.4]} 34. Be4 {[%clk 0:01:26.2]} 34...
Rh2 {[%clk 0:00:51.9]} 35. Rf1 {[%clk 0:01:18.7]} 35... d5 {[%clk 0:00:47.3]}
36. Bd3 {[%clk 0:01:12.8]} 36... Kc5 {[%clk 0:00:44.6]} 37. Rf8 {[%clk
0:01:01.2]} 37... Kd4 {[%clk 0:00:41]} 38. Rd1 {[%clk 0:01:01.8]} 38... Rxf2
{[%clk 0:00:36.4]} 39. Bxg6+ {[%clk 0:01:00.2]} 39... Kc5 {[%clk 0:00:37.3]} 40.
Bd3 {[%clk 0:00:55.5]} 40... Rg2 {[%clk 0:00:37.2]} 41. g6 {[%clk 0:00:50.7]}
41... Nxg6 {[%clk 0:00:36.8]} 42. Rc8+ {[%clk 0:00:48.7]} 42... Kd6 {[%clk
0:00:35.1]} 43. Be4 {[%clk 0:00:42.3]} 43... Rg4 {[%clk 0:00:30.1]} 44. Rxd5+
{[%clk 0:00:41.9]} 44... Ke6 {[%clk 0:00:28.3]} 45. Rc6+ {[%clk 0:00:41.6]} 1-0

[Event "*** Titled Tuesday Blitz"]
[Site "Chess.com"]
[Date "2020.05.12"]
[Round "6"]
[White "Norival"]
[Black "Parhamov"]
[Result "0-1"]
[WhiteElo "2678"]
[BlackElo "3005"]
[TimeControl "180+1"]
[EndTime "11:05:45 PDT"]
[Termination "Parhamov won by resignation"]

1. d4 {[%clk 0:03:00.9]} 1... Nf6 {[%clk 0:02:59.6]} 2. Nf3 {[%clk 0:03:01.1]}
2... e6 {[%clk 0:02:59.3]} 3. Bg5 {[%clk 0:02:59.6]} 3... d5 {[%clk 0:02:58.8]}
4. e3 {[%clk 0:02:59.1]} 4... h6 {[%clk 0:02:57.6]} 5. Bh4 {[%clk 0:02:59]} 5...
Nbd7 {[%clk 0:02:49.7]} 6. Nbd2 {[%clk 0:02:58.2]} 6... g5 {[%clk 0:02:49.5]} 7.
Bg3 {[%clk 0:02:58.1]} 7... Nh5 {[%clk 0:02:49.4]} 8. c4 {[%clk 0:02:51.9]} 8...
c6 {[%clk 0:02:48.9]} 9. Bd3 {[%clk 0:02:51.6]} 9... Bg7 {[%clk 0:02:48.6]} 10.
O-O {[%clk 0:02:49]} 10... Nxg3 {[%clk 0:02:48.2]} 11. hxg3 {[%clk 0:02:49.2]}
11... O-O {[%clk 0:02:48.6]} 12. b4 {[%clk 0:02:42]} 12... a5 {[%clk 0:02:48]}
13. a3 {[%clk 0:02:40.7]} 13... axb4 {[%clk 0:02:43.9]} 14. axb4 {[%clk
0:02:41.6]} 14... Rxa1 {[%clk 0:02:43.1]} 15. Qxa1 {[%clk 0:02:42.5]} 15... c5
{[%clk 0:02:43.6]} 16. cxd5 {[%clk 0:02:34.4]} 16... cxd4 {[%clk 0:02:41]} 17.
Nxd4 {[%clk 0:02:25]} 17... Ne5 {[%clk 0:02:40.6]} 18. Be4 {[%clk 0:01:37.1]}
18... exd5 {[%clk 0:02:40.2]} 19. Bc2 {[%clk 0:01:37.2]} 19... Nc6 {[%clk
0:02:38.4]} 20. b5 {[%clk 0:01:31.3]} 20... Nxd4 {[%clk 0:02:38.1]} 21. exd4
{[%clk 0:01:32.2]} 21... Qb6 {[%clk 0:02:36.1]} 22. Nb3 {[%clk 0:01:27.2]} 22...
Qxb5 {[%clk 0:02:34.8]} 23. Rb1 {[%clk 0:01:27.2]} 23... Qe2 {[%clk 0:02:28.5]}
24. Qb2 {[%clk 0:01:25.2]} 24... Re8 {[%clk 0:02:19.9]} 25. Qc3 {[%clk
0:01:16.9]} 25... Qc4 {[%clk 0:02:18.9]} 26. Qd3 {[%clk 0:01:06.2]} 26... Qxd3
{[%clk 0:02:11.4]} 27. Bxd3 {[%clk 0:01:07.1]} 27... b6 {[%clk 0:02:11.3]} 28.
Ra1 {[%clk 0:01:00.2]} 28... Be6 {[%clk 0:02:10.3]} 29. Ra6 {[%clk 0:00:57.3]}
29... Rb8 {[%clk 0:02:10.3]} 30. Kf1 {[%clk 0:00:55.1]} 30... g4 {[%clk
0:02:08.9]} 31. Ke2 {[%clk 0:00:51.1]} 31... h5 {[%clk 0:02:09.2]} 32. Kd2
{[%clk 0:00:51.1]} 32... Kf8 {[%clk 0:02:06.8]} 33. Kc3 {[%clk 0:00:50.2]} 33...
Ke7 {[%clk 0:02:07]} 34. Ra7+ {[%clk 0:00:48.5]} 34... Kf6 {[%clk 0:02:07]} 35.
Bb5 {[%clk 0:00:48.5]} 35... Kg5 {[%clk 0:02:06.5]} 36. Bd7 {[%clk 0:00:40.6]}
36... Bf6 {[%clk 0:02:06.2]} 37. Kd3 {[%clk 0:00:37.4]} 37... Kf5 {[%clk
0:02:02.5]} 38. Bxe6+ {[%clk 0:00:29]} 38... fxe6 {[%clk 0:02:03.4]} 39. Nd2
{[%clk 0:00:25]} 39... Rh8 {[%clk 0:01:56.8]} 40. Rb7 {[%clk 0:00:23.3]} 40...
Ra8 {[%clk 0:01:52.5]} 41. Rxb6 {[%clk 0:00:22.2]} 41... Ra4 {[%clk 0:01:39.2]}
42. Nb3 {[%clk 0:00:20.6]} 42... Ra2 {[%clk 0:01:39.3]} 43. Nc5 {[%clk
0:00:19.9]} 43... Rxf2 {[%clk 0:01:22.7]} 44. Rb1 {[%clk 0:00:13.3]} 44... Rxg2
{[%clk 0:01:15.6]} 45. Rf1+ {[%clk 0:00:12.9]} 45... Kg6 {[%clk 0:01:15.8]} 46.
Nxe6 {[%clk 0:00:11.7]} 46... Rxg3+ {[%clk 0:01:15.8]} 47. Ke2 {[%clk
0:00:12.4]} 47... Bg5 {[%clk 0:01:15.3]} 0-1

[Event "*** Titled Tuesday Blitz"]
[Site "Chess.com"]
[Date "2020.05.12"]
[Round "6"]
[White "Jospem"]
[Black "vaishali2001"]
[Result "1-0"]
[WhiteElo "2860"]
[BlackElo "2658"]
[TimeControl "180+1"]
[EndTime "11:05:49 PDT"]
[Termination "Jospem won on time"]

1. c4 {[%clk 0:03:00.9]} 1... e5 {[%clk 0:02:59.4]} 2. Nc3 {[%clk 0:02:58.8]}
2... Nf6 {[%clk 0:02:59.5]} 3. Nf3 {[%clk 0:02:58.4]} 3... Nc6 {[%clk
0:02:59.7]} 4. a3 {[%clk 0:02:57.1]} 4... d5 {[%clk 0:02:57.8]} 5. cxd5 {[%clk
0:02:58]} 5... Nxd5 {[%clk 0:02:58.3]} 6. Qc2 {[%clk 0:02:57.2]} 6... Be7 {[%clk
0:02:57]} 7. e3 {[%clk 0:02:56.6]} 7... O-O {[%clk 0:02:56.1]} 8. Bd3 {[%clk
0:02:53.4]} 8... Nxc3 {[%clk 0:02:39.2]} 9. dxc3 {[%clk 0:02:44.4]} 9... f5
{[%clk 0:02:37.7]} 10. e4 {[%clk 0:02:44.3]} 10... f4 {[%clk 0:02:35.6]} 11. b4
{[%clk 0:02:39.8]} 11... Bg4 {[%clk 0:02:21.7]} 12. Be2 {[%clk 0:02:36.6]} 12...
Bxf3 {[%clk 0:02:00.2]} 13. Bxf3 {[%clk 0:02:34.9]} 13... a5 {[%clk 0:02:00.4]}
14. Rb1 {[%clk 0:02:26.6]} 14... Qd6 {[%clk 0:01:54.5]} 15. O-O {[%clk
0:02:24.9]} 15... Kh8 {[%clk 0:01:51.7]} 16. Rd1 {[%clk 0:02:16.5]} 16... Qe6
{[%clk 0:01:40.8]} 17. h3 {[%clk 0:02:09.3]} 17... axb4 {[%clk 0:01:30.5]} 18.
axb4 {[%clk 0:02:10.2]} 18... Nd8 {[%clk 0:01:02.5]} 19. Bb2 {[%clk 0:01:51.5]}
19... b5 {[%clk 0:00:58]} 20. Ra1 {[%clk 0:01:49.7]} 20... Nb7 {[%clk
0:00:57.1]} 21. Bg4 {[%clk 0:01:45]} 21... Qb6 {[%clk 0:00:51.3]} 22. Rxa8
{[%clk 0:01:28.3]} 22... Rxa8 {[%clk 0:00:52.2]} 23. c4 {[%clk 0:01:28.9]} 23...
Bxb4 {[%clk 0:00:19.9]} 24. Bxe5 {[%clk 0:01:24.1]} 24... Bd6 {[%clk 0:00:20.3]}
25. Bxg7+ {[%clk 0:00:26.9]} 25... Kxg7 {[%clk 0:00:19.4]} 26. Qc3+ {[%clk
0:00:27.5]} 26... Kf7 {[%clk 0:00:16.8]} 27. Bh5+ {[%clk 0:00:27.4]} 27... Ke6
{[%clk 0:00:06.5]} 28. Qg7 {[%clk 0:00:25.2]} 28... Rf8 {[%clk 0:00:01.1]} 29.
Bg4+ {[%clk 0:00:24.9]} 1-0

[Event "*** Titled Tuesday Blitz"]
[Site "Chess.com"]
[Date "2020.05.12"]
[Round "6"]
[White "bugsbunny444"]
[Black "grzechu96"]
[Result "0-1"]
[WhiteElo "2451"]
[BlackElo "2602"]
[TimeControl "180+1"]
[EndTime "11:05:49 PDT"]
[Termination "grzechu96 won on time"]

1. Nf3 {[%clk 0:03:00.3]} 1... Nf6 {[%clk 0:02:59.1]} 2. c4 {[%clk 0:03:00.1]}
2... c5 {[%clk 0:02:59]} 3. g3 {[%clk 0:03:00.2]} 3... d5 {[%clk 0:02:59.2]} 4.
cxd5 {[%clk 0:03:00.2]} 4... Nxd5 {[%clk 0:03:00.1]} 5. Bg2 {[%clk 0:03:01.1]}
5... Nc6 {[%clk 0:03:00.6]} 6. Nc3 {[%clk 0:03:01.6]} 6... g6 {[%clk 0:02:55.7]}
7. h4 {[%clk 0:02:59.1]} 7... h6 {[%clk 0:02:55.4]} 8. d3 {[%clk 0:02:45.4]}
8... Bg7 {[%clk 0:02:54.8]} 9. Nxd5 {[%clk 0:02:20.1]} 9... Qxd5 {[%clk
0:02:55.7]} 10. O-O {[%clk 0:02:20.5]} 10... O-O {[%clk 0:02:33.2]} 11. Be3
{[%clk 0:02:19]} 11... Bd7 {[%clk 0:02:21.7]} 12. Qc1 {[%clk 0:02:03]} 12... b6
{[%clk 0:01:16.8]} 13. Bxh6 {[%clk 0:01:57.1]} 13... Rac8 {[%clk 0:01:17.1]} 14.
Bxg7 {[%clk 0:01:39.3]} 14... Kxg7 {[%clk 0:01:18]} 15. Qg5 {[%clk 0:01:28.4]}
15... Qxg5 {[%clk 0:01:03.7]} 16. Nxg5 {[%clk 0:01:21.5]} 16... Nd4 {[%clk
0:01:03.8]} 17. e3 {[%clk 0:01:21.6]} 17... Nc2 {[%clk 0:01:03.1]} 18. Rac1
{[%clk 0:00:57.7]} 18... Nb4 {[%clk 0:01:02.9]} 19. Rfd1 {[%clk 0:00:58]} 19...
Nxa2 {[%clk 0:00:51.9]} 20. Ra1 {[%clk 0:00:57.8]} 20... Ba4 {[%clk 0:00:52.3]}
21. Rf1 {[%clk 0:00:14.6]} 21... Bb3 {[%clk 0:00:52]} 22. Nf3 {[%clk 0:00:14.7]}
22... a5 {[%clk 0:00:51.5]} 23. Nd2 {[%clk 0:00:09.6]} 23... Be6 {[%clk
0:00:51.5]} 24. Nc4 {[%clk 0:00:04.4]} 24... Bxc4 {[%clk 0:00:50.5]} 25. dxc4
{[%clk 0:00:05.3]} 25... Nb4 {[%clk 0:00:51.1]} 26. Rfd1 {[%clk 0:00:05.9]}
26... Rcd8 {[%clk 0:00:50.2]} 27. Kf1 {[%clk 0:00:05.1]} 27... e6 {[%clk
0:00:48.8]} 28. Ke2 {[%clk 0:00:05.3]} 28... Kf6 {[%clk 0:00:47.3]} 29. Bf3
{[%clk 0:00:04]} 29... Rh8 {[%clk 0:00:41.6]} 30. Rxd8 {[%clk 0:00:03.1]} 30...
Rxd8 {[%clk 0:00:41.5]} 31. Rd1 {[%clk 0:00:03.7]} 31... Rxd1 {[%clk 0:00:39.6]}
32. Kxd1 {[%clk 0:00:04.6]} 32... Nd3 {[%clk 0:00:40.3]} 0-1